Cogmind - Beta 9.6 @@@ ROGUE MODE // 2020.07.25 @ 20:15:30 Player: aes256thetic Result: Self-destructed Performance ------------- Evolutions (0) 0 Regions Visited (4) 800 Robots Destroyed (1) 5 Value Destroyed (10) 10 Prototype IDs (22) 440 Alien Tech Used (0) 0 Bonus (300) 300 TOTAL SCORE: 1555 Bonus ------- Aligned with FarCom 300 Cogmind --------- Core Integrity 225/250 Matter 199/300 Energy 117/125 System Corruption 4% Temperature Cool (80) Movement Core (500) Ox9 Location -9/Mines Parts ------- > --- POWER (1) -------- Light Ion Engine > --- PROPULSION (2) --- (None) > --- UTILITY (2) ------ Medium Storage Unit Medium Storage Unit > --- WEAPON (2) ------- Latent Energy Streamer > --- INVENTORY (12) --- Wheel Compact Wheel Medium Battery (200) Small Matter Pod (0) Peak State ------------ > --- POWER ------------ Light Ion Engine > --- PROPULSION ------- Aluminum Leg Aluminum Leg > --- UTILITY ---------- Small Storage Unit Propulsion Shielding > --- WEAPON ----------- Firepult > --- INVENTORY -------- Ion Engine Wheel Medium Battery Small Matter Pod [Rating: 25] Favorites ----------- Power Light Ion Engine Engine Light Ion Engine Propulsion Aluminum Leg Leg Aluminum Leg Utility Small Storage Unit Device Cloak of Protection Storage Small Storage Unit Protection Propulsion Shielding Weapon Light Assault Rifle Energy Gun EM Pulse Gun Energy Cannon Latent Energy Streamer Ballistic Gun Light Assault Rifle Build | -11 -10 -10 -10 -9 ------- Run | Scr Mat Min Exi Min Slots Evolved . | . . . . . Power . | . . . . . Propulsion . | . . . . . Utility . | . . . . . Weapon . | . . . . . Parts Attached 18 | 6 1 . 9 2 Power 3 | 1 . . 1 1 Engine 3 | 1 . . 1 1 Core . | . . . . . Reactor . | . . . . . Propulsion 2 | 2 . . . . Treads . | . . . . . Leg 2 | 2 . . . . Wheel . | . . . . . Hover . | . . . . . Flight . | . . . . . Utility 5 | 1 1 . 3 . Device 1 | . . . 1 . Storage 3 | 1 . . 2 . Processor . | . . . . . Hackware . | . . . . . Protection 1 | . 1 . . . Artifact . | . . . . . Weapon 8 | 2 . . 5 1 Energy Gun 3 | 1 . . 1 1 Energy Cannon 3 | . . . 3 . Ballistic Gun 2 | 1 . . 1 . Ballistic Cannon . | . . . . . Launcher . | . . . . . Special Weapon . | . . . . . Impact Weapon . | . . . . . Slashing Weapon . | . . . . . Piercing Weapon . | . . . . . Special Melee Weapon . | . . . . . Unidentified Prototypes 3 | . . . 3 . Parts Lost 3 | . . . . 3 Power . | . . . . . Propulsion 1 | . . . . 1 Utility . | . . . . . Weapon 2 | . . . . 2 Highest Loss Streak 3 | . . . . 3 Average Slot Usage (%) 96 | . 91 100 97 87 Engine 14 | . 14 14 14 14 Leg 27 | . 28 28 28 16 Storage 15 | . 14 14 15 28 Protection 9 | . 6 14 10 . Energy Gun 10 | . 14 14 9 7 Energy Cannon 3 | . . . 3 14 Ballistic Gun 13 | . 14 14 13 7 Naked Turns . | . . . . . Heaviest Build 32 | 10 11 11 32 32 Greatest Support 20 | 20 20 20 20 20 Greatest Overweight (x) 3 | 2 . . 1 3 Average Overweight (x) . | . . . . 1 Largest Inventory Capacity 12 | 6 6 6 12 12 Average Capacity 6 | 5 6 6 6 12 Most Carried 6 | 3 5 4 6 6 Average Carried 4 | 1 3 4 4 5 Final Capacity 12 | 6 6 6 12 12 Final Carried 6 | 3 4 4 6 4 Class Distribution -------------------- 100% | Mutant Dominant Class ---------------- Mutant | -10/Materials Mutant | -10/Mines Mutant | -10/Exiles Mutant | -9/Mines Resources | -11 -10 -10 -10 -9 ----------- Run | Scr Mat Min Exi Min Matter Collected 260 | 182 78 . . . Remotely . | . . . . . Salvage Created 20 | . . . . 20 Parts . | . . . . . Haulers Intercepted . | . . . . . Recyclers Shooed . | . . . . . Parts Field Recycled . | . . . . . Retrieved Matter . | . . . . . Parts Self-Destructed . | . . . . . Prevented . | . . . . . Kills | -11 -10 -10 -10 -9 ------- Run | Scr Mat Min Exi Min Combat Hostiles Destroyed 1 | . . . . 1 Guns 1 | . . . . 1 Classes Destroyed 1 | . . . . 1 Assembled 1 | . . . . 1 Best Kill Streak 1 | . . . . 1 Combat Bots Only 1 | . . . . 1 Max Kills in Single Turn 1 | . . . . 1 Gunslinging . | . . . . . Exploded . | . . . . . Melee . | . . . . . Uniques/NPCs Destroyed . | . . . . . Combat | -11 -10 -10 -10 -9 -------- Run | Scr Mat Min Exi Min Damage Taken 644 | . . 4 . 640 Core 25 | . . . . 25 Absorbed by Shields . | . . . . . Core Remaining (%) 100 | 100 . . . . Volleys Fired 11 | . . . . 11 Largest 1 | . . . . 1 Hottest 40 | . . . . 40 Shots Fired 11 | . . . . 11 Gun 11 | . . . . 11 Cannon . | . . . . . Launcher . | . . . . . Special . | . . . . . Kinetic . | . . . . . Thermal . | . . . . . Explosive . | . . . . . Electromagnetic 11 | . . . . 11 Robot Hit Streak 3 | . . . . 3 Robot Miss Streak 2 | . . . . 2 Penetration Max . | . . . . . Secondary Targets . | . . . . . Shots Hit Robots 6 | . . . . 6 Core Hits 3 | . . . . 3 Critical Hits . | . . . . . Critical Kills . | . . . . . Critical Parts Destroyed . | . . . . . Melee Attacks . | . . . . . Impact . | . . . . . Slashing . | . . . . . Piercing . | . . . . . Sneak Attacks . | . . . . . Combat Hostiles . | . . . . . Follow-up Attacks . | . . . . . Damage Inflicted 85 | . . 9 . 76 Guns 76 | . . . . 76 Cannons . | . . . . . Explosions . | . . . . . Melee . | . . . . . Ramming 9 | . . 9 . . Kinetic . | . . . . . Thermal . | . . . . . Explosive . | . . . . . Electromagnetic 76 | . . . . 76 Impact . | . . . . . Slashing . | . . . . . Piercing . | . . . . . Highest Corruption 4 | . . 2 2 4 Average Corruption 2 | . . 2 2 2 Corruption Purged . | . . . . . Effects 5 | . . . 4 1 Message Errors 1 | . . . 1 . Heat Flow Errors 1 | . . . 1 . Energy Discharges 2 | . . . 1 1 Data Loss (minor) 1 | . . . 1 . Overload Shots . | . . . . . Overflow Damage . | . . . . . Projectiles . | . . . . . Explosions . | . . . . . Melee . | . . . . . Knockbacks . | . . . . . Impact . | . . . . . Kinetic . | . . . . . Secondary . | . . . . . Self-Inflicted Damage 4 | . . 4 . . Shots . | . . . . . Rammed 1 | . . 1 . . Targets Rammed 1 | . . 1 . . Kicked . | . . . . . Crushed . | . . . . . Highest Temperature 147 | . . . 147 80 Average Temperature 66 | . . . 82 60 Received Heat Transfer 140 | . . . . 140 Siege Activations . | . . . . . Robots Corrupted . | . . . . . Combat Hostiles . | . . . . . Parts Fried . | . . . . . Impact Corruptions . | . . . . . Robots Melted . | . . . . . Combat Hostiles . | . . . . . Parts Melted . | . . . . . Heat Transferred . | . . . . . Parts Sabotaged . | . . . . . Parts Stolen . | . . . . . Parts Stripped . | . . . . . Power Chain Reactions . | . . . . . Missiles Intercepted . | . . . . . Alert | -11 -10 -10 -10 -9 ------- Run | Scr Mat Min Exi Min Peak Influence 19 | . 19 7 . 15 Average Influence 7 | . 8 7 . 10 Maximum Alert Level . | . . . . . Low Security (%) 100 | 100 100 100 . 100 Level 1 . | . . . . . Level 2 . | . . . . . Level 3 . | . . . . . Level 4 . | . . . . . Level 5 . | . . . . . High Security . | . . . . . Max Security . | . . . . . Squads Dispatched 2 | . 2 . . . Investigation 1 | . 1 . . . Extermination . | . . . . . Reinforcement 1 | . 1 . . . Assault . | . . . . . Garrison . | . . . . . Intercept . | . . . . . Construction Impeded . | . . . . . Haulers Reinforced . | . . . . . Stealth | -11 -10 -10 -10 -9 --------- Run | Scr Mat Min Exi Min Distress Signals . | . . . . . Communications Jammed . | . . . . . Distress Signals . | . . . . . Times Spotted 21 | . 1 . . 20 Peak Tracking Total 20 | . 1 . . 20 Tactical Retreats . | . . . . . Traps | -11 -10 -10 -10 -9 ------- Run | Scr Mat Min Exi Min Traps Triggered . | . . . . . Indirectly . | . . . . . Trap Hack Attempts . | . . . . . Triggered . | . . . . . Disarmed . | . . . . . Reprogrammed . | . . . . . Reused . | . . . . . Traps Extracted . | . . . . . Installed . | . . . . . Triggered . | . . . . . Machines | -11 -10 -10 -10 -9 ---------- Run | Scr Mat Min Exi Min Machines Disabled 1 | . . . . 1 Max in Single Turn 1 | . . . . 1 Machines Sabotaged . | . . . . . Garrisons Compromised . | . . . . . Overloaded Fab Kills . | . . . . . Fab Network Shutdowns . | . . . . . Hacking | -11 -10 -10 -10 -9 --------- Run | Scr Mat Min Exi Min Machines Accessed 6 | . 1 . 5 . Terminals 1 | . 1 . . . Fabricators . | . . . . . Repair Stations . | . . . . . Recycling Units . | . . . . . Scanalyzers . | . . . . . Garrison Access . | . . . . . Total Hacks 54 | . 5 . 49 . Successful 50 | . 1 . 49 . Failed 4 | . 4 . . . Catastrophic . | . . . . . Database Lockouts . | . . . . . Manual 1 | . . . 1 . Terminals 5 | . 5 . . . Fabricators . | . . . . . Repair Stations . | . . . . . Recycling Units . | . . . . . Scanalyzers . | . . . . . Garrison Access . | . . . . . Terminal Hacks 50 | . 1 . 49 . Record 48 | . . . 48 . Emergency Access Points 1 | . 1 . . . EX-Prototype ID Bank 1 | . . . 1 . Fabricator Hacks . | . . . . . Repair Station Hacks . | . . . . . Recycling Unit Hacks . | . . . . . Scanalyzer . | . . . . . Garrison Access Hacks . | . . . . . Unauthorized Hacks . | . . . . . Terminals . | . . . . . Fabricators . | . . . . . Repair Stations . | . . . . . Recycling Units . | . . . . . Scanalyzers . | . . . . . Garrison Access . | . . . . . Data Cores Recovered . | . . . . . Used . | . . . . . Hacking Detections 1 | . 1 . . . Full Trace Events 1 | . 1 . . . Feedback Events . | . . . . . Feedback Blocked . | . . . . . Robot Schematics Acquired . | . . . . . Robots Built . | . . . . . Matter . | . . . . . Time . | . . . . . Total Robot Build Rating . | . . . . . Part Schematics Acquired . | . . . . . Parts Built . | . . . . . Matter . | . . . . . Time . | . . . . . Total Part Build Rating . | . . . . . Parts Repaired . | . . . . . Time . | . . . . . Parts Recycled . | . . . . . Recycled Matter . | . . . . . Retrieved Matter . | . . . . . Retrieved Components . | . . . . . Parts Scanalyzed . | . . . . . Part Schematics Acquired . | . . . . . Parts Damaged . | . . . . . Bothacking | -11 -10 -10 -10 -9 ------------ Run | Scr Mat Min Exi Min Used RIF Installer . | . . . . . Robots Hacked . | . . . . . Non-combat . | . . . . . Combat . | . . . . . Robot Hacks Applied . | . . . . . Relay Couplers Released . | . . . . . Robots Rewired . | . . . . . Allies Hacked . | . . . . . Hacks Repelled . | . . . . . Allies | -11 -10 -10 -10 -9 -------- Run | Scr Mat Min Exi Min Total Allies . | . . . . . Largest Group . | . . . . . Highest-Rated Group . | . . . . . Highest-Rated Ally . | . . . . . Total Orders . | . . . . . Ally Attacks . | . . . . . Total Damage . | . . . . . Kills . | . . . . . Allies Corrupted . | . . . . . Allies Melted . | . . . . . Intel | -11 -10 -10 -10 -9 ------- Run | Scr Mat Min Exi Min Robot Analysis Total . | . . . . . Derelict Logs Recovered . | . . . . . Drone Launches . | . . . . . Drone Recoveries . | . . . . . Exploration | -11 -10 -10 -10 -9 ------------- Run | Scr Mat Min Exi Min Turns Passed 1190 | 64 163 106 803 54 Spaces Moved 917 | 45 134 88 631 19 Core 7 | 7 . . . . Treads . | . . . . . Legs 910 | 38 134 88 631 19 Wheels . | . . . . . Hover . | . . . . . Flight . | . . . . . Fastest Speed 50 | 50 120 120 120 150 Average Speed 122 | 113 120 120 123 153 Slowest Speed 210 | 150 120 120 150 210 Overloaded Moves . | . . . . . Propulsion Burnouts . | . . . . . Robots Hopped . | . . . . . Cave-ins Triggered . | . . . . . Exploration Rate (%) 32 | 4 31 28 92 9 Regions Visited 4 Branch Regions 3 Pre-discovered Areas 1 | . . . 1 . Known Exits Taken . | . . . . . Unknown Exits Taken 4 | 1 1 1 1 . Scrap Searched . | . . . . . Spaces Dug . | . . . . . Terrain Destroyed . | . . . . . Melee . | . . . . . Projectile . | . . . . . AOE . | . . . . . Actions | -11 -10 -10 -10 -9 --------- Run | Scr Mat Min Exi Min Total 970 | 55 136 88 659 32 Wait 7 | 2 . . 5 . Move 913 | 44 133 87 630 19 Hop . | . . . . . Pick Up 12 | 3 2 . 7 . Fast Attach 9 | 6 . . 3 . Attach 6 | . 1 . 3 2 Detach . | . . . . . Swap 3 | . . . 3 . Drop 8 | . . . 8 . Fire 11 | . . . . 11 Melee . | . . . . . Ram . | . . . . . Kick 1 | . . 1 . . Crush . | . . . . . Escape Stasis . | . . . . . Rewire . | . . . . . Trap . | . . . . . Miscellaneous . | . . . . . Route ------- -11/Scrapyard -10/Materials -10/Mines -10/Exiles -9/Mines History --------- Turn | Location | Event 13 | -11/Scrapyard | Discovered new exit (range 16) 65 | -11/Scrapyard | Entered Materials 169 | -10/Materials | Met 8R-AWN 200 | -10/Materials | Discovered new exit (range 16) 228 | -10/Materials | Entered Mines 230 | -10/Mines | Followed 8R-AWN into the Mines 311 | -10/Mines | Build established: Mutant 329 | -10/Mines | Discovered new exit (range 5) 334 | -10/Mines | Entered Exiles 364 | -10/Exiles | Welcomed by 8R-AWN 392 | -10/Exiles | Met EX-HEX 449 | -10/Exiles | Met EX-DEC 517 | -10/Exiles | Visited The Gauntlet 665 | -10/Exiles | Learned location of Zion (-7) 718 | -10/Exiles | Discovered new exit (range 14) 811 | -10/Exiles | Met EX-BIN 832 | -10/Exiles | Aligned with FarCom system 834 | -10/Exiles | Given EX-Vault access code 891 | -10/Exiles | Opened EX-Vault 896 | -10/Exiles | Found Prototype Energy Cannon 897 | -10/Exiles | Identified Latent Energy Streamer 902 | -10/Exiles | Found Prototype Energy Cannon 904 | -10/Exiles | Identified Firepult 914 | -10/Exiles | Found Prototype Device 915 | -10/Exiles | Identified Cloak of Protection 954 | -10/Exiles | Warned to stay clear of 0b10 Research branches 1137 | -10/Exiles | Left Exiles lab with Latent Energy Streamer 1137 | -10/Exiles | Entered Mines 1138 | -9/Mines | Assembled infested the area 1191 | -9/Mines | Self-destructed Last Messages --------------- 01138_ ALERT: Infestation in the mines, dispatching Demolisher response squad. 01138_ K-01 Serf cleans the Laser Drill. [Achievement: Hunted] 01141_ K-01 Serf cleans the Laser Drill. 01145_ K-01 Serf collects debris. 01150_ K-01 Serf knocked back. 01153_ K-01 Serf collects debris. 01154_ K-01 Serf destroyed. 01157_ K-01 Serf collects debris. 01160_ Ion Engine severed. 01160_ Lgt. Assault Rifle destroyed. 01161_ K-01 Serf collects debris. 01166_ K-01 Serf destroyed. 01168_ Aluminum Leg severed. 01172_ System corrupted: Energy discharge (-41). 01174_ Aluminum Leg destroyed. 01174_ System corrupted by crushing effect (+2). 01177_ Laser Drill disabled. 01183_ as-00080 destroyed. 01190_ EM Pulse Gun destroyed. Map ----- +----------------------------------------------------+ | | | | | | | | | | | | | | | | | | | | | | | | | | | | | | | | | | | | | | | | | | | | | | | ?????????????????????????????????????????????????? | | ???????????????????????##################????????? | | ???????????????????????# @aaaaa a #########? | | ???????????????????????#aa" a"""a""" % | | ???????????????????????#a"""a""" """ #### ### | | ???????????????????????#a""" """ """ #????????? | | ???????????????????????#a*a= #????????? | | ???????????????????????# """ """ """ #????????? | | ???????????????????????# """a""" """ #????????? | | ???????????????????????# """ """ """ #????????? | | ???????????????????????# #????????? | | ???????????????????????##################????????? | | ?????????????????????????????????????????????????? | | ?????????????????????????????????????????????????? | | ?????????????????????????????????????????????????? | | ?????????????????????????????????????????????????? | | ?????????????????????????????????????????????????? | | ?????????????????????????????????????????????????? | | ?????????????????????????????????????????????????? | | ?????????????????????????????????????????????????? | | ?????????????????????????????????????????????????? | | ?????????????????????????????????????????????????? | | ?????????????????????????????????????????????????? | | ?????????????????????????????????????????????????? | | ?????????????????????????????????????????????????? | | ?????????????????????????????????????????????????? | | ?????????????????????????????????????????????????? | +----------------------------------------------------+ Best States ------------- Heat Dissipation 25 Energy Generation 10 Energy Capacity 250 Matter Stores 300 Matter Capacity 300 Sight Range 16 Terrain Scan Density 10 Cloak Strength 5 Propulsion Shielding 33 Evasion (%) 40 Item Schematics ----------------- None Robot Schematics ------------------ None Fabricated ------------ Nothing Alien Tech Used ----------------- None Achievements -------------- Hunted Librarian Tourist Challenges ------------ None Game ------ Seed EnhancedContainmentRipper Manual? 0 Play Time 00:27:32 Cumulative 1.8 hours Start 2020.07.25 @ 19:18:49 End 2020.07.25 @ 20:15:30 Sessions 1 Manual Loads 0 Difficulty Rogue Special Mode None Game No. 4 Rogue 4 Adventurer 0 Explorer 0 Win Type - Total 0 Types 0/0/0/0/0/0/0 Lore% 9 Gallery% 8 Achievement% 7 Wizard Run 0 Options --------- ASCII 0 Keyboard 0 Movement Mouse Keybinds 0 Fullscreen 1 Font 24/Terminus Map View 130x56 Tactical HUD 1 Map Filters NONE Filters NONE Steam 1 RUN: 9a8f6590-87ac-4aff-9eb0-6990d2689fb2